bitfinex/quotes_SOLUSD_20241117
["timestamp","ask_amount","ask_price","bid_price","bid_amount"]
[1731810766555,40.85123927,213.67,213.6,45.53273927]
[1731810766761,40.85123927,213.69,213.6,45.53273927]
[1731810767055,40.85123927,213.71,213.63,20.0]
[1731810767260,40.85123927,213.71,213.62,40.85123927]
[1731810767828,0.09367462,213.7,213.62,45.53233927]
[1731810768233,0.09367462,213.7,213.62,57.23533927]
[1731810770737,25.32684376,213.7,213.62,16.3841]
[1731810770946,25.23316914,213.64,213.57,12.2294805]
[1731810771146,25.23316914,213.62,213.57,12.2294805]
[1731810771353,25.23316914,213.6,213.57,12.2294805]
[1731810771550,25.23316914,213.6,213.57,0.5237805]
[1731810771951,16.0062,213.61,213.57,0.5237805]
[1731810774263,25.23316914,213.6,213.57,0.5237805]
[1731810778396,16.0062,213.61,213.57,12.2294805]
[1731810778683,25.23316914,213.62,213.57,16.9115805]
[1731810779983,16.0062,213.67,213.6,25.23316914]
[1731810780191,6.4433,213.72,213.62,25.23316914]
[1731810780192,25.23316914,213.7,213.62,25.23316914]
[1731810780606,25.23316914,213.72,213.64,25.23316914]
[1731810780887,16.0062,213.73,213.64,25.23316914]
[1731810781060,16.0062,213.73,213.58,20.0]
[1731810781061,25.23316914,213.66,213.58,20.0]
[1731810781259,25.23316914,213.64,213.57,16.9115805]
[1731810781478,25.23316914,213.62,213.57,12.2294805]
[1731810782095,41.36485914,213.58,213.57,0.5237805]
[1731810782280,41.36485914,213.58,213.47,11.7108]
[1731810782281,44.027864,213.57,213.47,11.7108]
[1731810782582,25.23316914,213.51,213.47,11.7108]
[1731810783384,25.23316914,213.55,213.47,16.3952]
[1731810783566,25.23316914,213.57,213.48,25.23316914]
[1731810783761,0.1,213.66,213.43,0.1]
[1731810783762,22.0692,213.64,213.52,25.23316914]
[1731810783981,22.0692,213.64,213.56,25.23316914]
[1731810784191,22.0692,213.64,213.58,25.23316914]
[1731810784393,25.23316914,213.67,213.58,25.23316914]
[1731810784580,25.23316914,213.67,213.59,20.0]
[1731810784892,0.09367462,213.66,213.56,41.01559553]
[1731810785092,0.09367462,213.66,213.5,0.25098]
[1731810785093,41.01559553,213.61,213.54,41.01559553]
[1731810785295,41.01559553,213.61,213.52,41.01559553]
[1731810785483,41.01559553,213.61,213.27,70.0]
[1731810785484,41.01559553,213.59,213.5,41.01559553]
[1731810785682,41.01559553,213.61,213.52,41.01559553]
[1731810785872,41.01559553,213.61,213.54,41.01559553]
[1731810786283,41.01559553,213.63,213.54,41.01559553]
[1731810786487,41.01559553,213.65,213.56,41.01559553]
[1731810786976,41.01559553,213.61,213.53,16.391]
[1731810787495,41.01559553,213.59,213.53,16.391]
[1731810787882,41.01559553,213.57,213.48,52.72599553]
[1731810788196,0.12549,213.62,213.49,16.394]
[1731810788401,41.01559553,213.58,213.49,16.394]
[1731810789202,41.01559553,213.6,213.51,20.0]
[1731810789373,41.01559553,213.65,213.56,41.01559553]
[1731810789583,41.01559553,213.67,213.58,41.01559553]
[1731810790091,41.01559553,213.67,213.52,0.25098]
[1731810790092,41.01559553,213.65,213.56,41.01559553]
[1731810790279,41.01559553,213.65,213.57,20.0]
[1731810791399,41.01559553,213.65,213.58,16.3872]
[1731810791715,41.01559553,213.59,213.53,11.7078]
[1731810792177,41.01559553,213.61,213.53,11.7078]
[1731810792377,4.6807,213.64,213.53,52.72339553]
[1731810792378,41.01559553,213.63,213.53,52.72339553]
[1731810793380,41.01559553,213.63,213.54,20.0]
[1731810793800,41.01559553,213.57,213.53,11.7078]
[1731810793992,41.01559553,213.57,213.51,4.6834]
[1731810795211,41.01559553,213.61,213.53,41.01559553]
[1731810795449,41.01559553,213.61,213.54,4.6829]
[1731810795711,45.69709553,213.61,213.54,4.6829]
[1731810795911,41.01559553,213.59,213.54,4.6829]
[1731810796496,41.01559553,213.59,213.52,4.6832]
[1731810796916,41.01559553,213.61,213.52,16.3917]
[1731810797590,4.6816,213.6,213.52,16.3917]
[1731810797991,41.01559553,213.61,213.52,16.3917]
[1731810798409,45.69699553,213.61,213.52,16.3917]
[1731810798809,41.01559553,213.59,213.52,11.7085]
[1731810799588,4.77577462,213.58,213.52,11.7085]
[1731810799798,41.01559553,213.55,213.48,4.6842]
[1731810800297,41.01559553,213.55,213.47,11.7107]
[1731810800508,41.01559553,213.53,213.47,11.7107]
[1731810801422,41.01559553,213.49,213.41,11.714]
[1731810801721,41.01559553,213.47,213.41,11.714]
[1731810802616,45.70019553,213.47,213.41,11.714]
[1731810803403,41.01559553,213.42,213.36,0.5237805]
[1731810803929,41.01559553,213.44,213.36,57.94337603]
[1731810804091,41.01559553,213.49,213.4,41.01559553]
[1731810805201,41.01559553,213.49,213.41,16.4003]
[1731810806326,41.01559553,213.46,213.41,16.4003]
[1731810806500,0.09367462,213.48,213.36,16.9275805]
[1731810806501,41.01559553,213.42,213.36,16.9275805]
[1731810806700,41.01559553,213.4,213.36,16.9275805]
[1731810806904,25.30296473,213.4,213.36,16.9275805]
[1731810807215,25.30296473,213.42,213.36,16.9275805]
[1731810807835,25.30296473,213.44,213.36,42.23054523]
[1731810808213,0.09367462,213.48,213.36,42.23054523]
[1731810808214,25.30296473,213.4,213.36,12.2408805]
[1731810808407,30.08093935,213.48,213.36,0.5237805]
[1731810808408,25.30296473,213.38,213.36,0.5237805]
[1731810808732,46.019964,213.37,213.36,0.5237805]
[1731810808920,45.894474,213.37,213.36,0.5237805]
[1731810809509,50.581074,213.37,213.36,0.5237805]
[1731810809826,50.706564,213.37,213.36,0.5237805]
[1731810810208,50.581074,213.37,213.36,0.5237805]
[1731810810403,21.9921,213.37,213.36,0.5237805]
[1731810810610,45.894474,213.37,213.36,0.5237805]
[1731810810910,87.04322399,213.37,213.36,0.5237805]
[1731810811309,87.16871399,213.37,213.36,0.5237805]
[1731810811513,0.1,213.34,213.14,1.33231036]
[1731810811719,41.14874999,213.26,213.17,41.14874999]
[1731810812609,0.12549,213.33,213.18,16.4179]
[1731810812610,41.14874999,213.24,213.18,16.4179]
[1731810813704,41.14874999,213.26,213.18,11.7271]
[1731810813907,41.14874999,213.3,213.23,41.14874999]
[1731810814127,41.14874999,213.34,213.26,20.0]
[1731810814321,41.14874999,213.36,213.27,41.14874999]
[1731810815030,41.14874999,213.34,213.26,41.14874999]
[1731810815205,41.14874999,213.34,213.28,16.4102]
[1731810816211,41.14874999,213.36,213.28,16.4102]
[1731810816911,41.14874999,213.36,213.28,57.55894999]
[1731810817506,21.9921,213.37,213.28,57.55894999]
[1731810817743,21.9921,213.37,213.3,41.14874999]
[1731810817909,41.14874999,213.4,213.31,20.0]
[1731810819445,22.001,213.43,213.34,41.14874999]
[1731810819747,59.01795971,213.46,213.38,41.14874999]
[1731810820031,59.01795971,213.46,213.39,20.0]
[1731810820238,41.14874999,213.42,213.37,0.12549]
[1731810820410,41.14874999,213.38,213.2,39.8685]
[1731810820611,0.1,213.43,213.2,39.8685]
[1731810820612,41.14874999,213.31,213.2,39.8685]
[1731810820807,41.14874999,213.29,213.2,16.4164]
[1731810821033,41.14874999,213.27,213.2,16.4164]
[1731810821418,41.14874999,213.25,213.16,64.60524999]
[1731810821654,23.776884,213.24,213.16,64.60524999]
[1731810821817,41.14874999,213.23,213.16,23.4565]
[1731810822017,41.14874999,213.21,213.15,16.4203]
[1731810822740,41.14874999,213.19,213.15,16.4203]
[1731810822937,41.14874999,213.17,213.14,0.5237805]
[1731810823116,64.92563399,213.15,213.14,0.5237805]
[1731810823815,41.14874999,213.15,213.14,0.5237805]
[1731810824012,64.92563399,213.15,213.14,0.5237805]
[1731810824535,85.05112399,213.15,213.14,0.5237805]
[1731810824942,85.05112399,213.15,213.03,11.735]
[1731810824943,23.776884,213.13,213.03,16.4291]
[1731810825117,41.14874999,213.05,213.03,11.735]
[1731810825461,41.14874999,213.05,212.97,11.7386]
[1731810825613,4.6926,213.1,212.97,11.7386]
[1731810825614,41.14874999,213.03,212.97,11.7386]
[1731810825824,41.14874999,213.01,212.97,11.7386]
[1731810826641,41.14874999,212.99,212.93,5.2200805]
[1731810826810,41.14874999,212.94,212.93,0.5237805]
[1731810827438,64.92563399,212.94,212.93,0.5237805]
[1731810827815,41.14874999,212.94,212.93,0.5237805]
[1731810828440,0.1,212.92,212.78,4.6996]
[1731810828616,23.776884,212.82,212.78,4.6996]
[1731810828937,23.776884,212.82,212.76,16.4499]
[1731810829543,6.65419,212.93,212.81,41.14874999]
[1731810829741,6.5287,212.93,212.87,41.14874999]
[1731810829952,23.902374,212.97,212.89,41.14874999]
[1731810830156,23.776884,212.89,212.81,41.14874999]
[1731810830335,24.027864,212.86,212.76,16.4499]
[1731810830544,23.902374,212.83,212.76,11.7498]
[1731810830874,23.902374,212.83,212.73,4.7006]
[1731810830875,41.14874999,212.8,212.73,4.7006]
[1731810831228,0.12549,212.83,212.7,41.14874999]
[1731810831229,23.776884,212.77,212.7,41.14874999]
[1731810831556,41.14874999,212.8,212.72,5.2245805]
[1731810832331,47.67744999,212.84,212.74,41.14874999]
[1731810832540,41.14874999,212.82,212.72,46.37333049]
[1731810832756,47.67744999,212.84,212.74,41.14874999]
[1731810832984,47.67744999,212.84,212.76,41.14874999]
[1731810833335,6.5287,212.84,212.76,41.14874999]
[1731810833533,6.5287,212.84,212.77,16.4496]
[1731810834050,47.67744999,212.84,212.77,16.4496]
[1731810834451,6.5287,212.84,212.78,41.14874999]
[1731810834756,41.14874999,212.79,212.72,0.5237805]
[1731810835343,41.14874999,212.79,212.72,5.2245805]
[1731810835561,41.14874999,212.79,212.72,0.5237805]
[1731810836050,41.14874999,212.83,212.73,57.60134999]
[1731810836248,23.776884,212.82,212.73,57.60134999]
[1731810836861,41.14874999,212.83,212.73,57.60134999]
[1731810836862,41.14874999,212.81,212.73,52.90064999]
[1731810837446,41.14874999,212.81,212.73,57.60134999]
[1731810837856,41.14874999,212.83,212.75,41.14874999]
[1731810838248,6.5287,212.84,212.77,41.14874999]
[1731810838474,11.2272,212.84,212.77,41.14874999]
[1731810838773,41.14874999,212.81,212.73,41.14874999]
[1731810839066,23.776884,212.8,212.73,41.14874999]
[1731810839661,41.14874999,212.79,212.72,0.5237805]
[1731810840179,41.14874999,212.81,212.73,41.14874999]
[1731810840746,41.14874999,212.83,212.75,41.14874999]
[1731810840959,6.5287,212.84,212.75,41.14874999]
[1731810841257,41.14874999,212.79,212.72,12.2762805]
[1731810841451,41.14874999,212.79,212.72,0.5237805]
[1731810841663,4.6985,212.83,212.72,0.5237805]
[1731810841664,41.14874999,212.75,212.72,0.5237805]
[1731810841880,4.7005,212.74,212.72,0.5237805]
[1731810842450,64.92563399,212.73,212.72,0.5237805]
[1731810843284,23.776884,212.74,212.72,0.5237805]
[1731810843463,41.14874999,212.75,212.72,0.5237805]
[1731810844054,41.14874999,212.79,212.72,0.5237805]
[1731810844291,41.14874999,212.83,212.75,41.14874999]
[1731810844492,11.2272,212.84,212.77,41.14874999]
[1731810844665,41.14874999,212.87,212.79,41.14874999]
[1731810844865,25.427143,212.86,212.77,25.427143]
[1731810845862,25.427143,212.86,212.73,0.22549]
[1731810846066,25.427143,212.86,212.79,25.427143]
[1731810846288,30.125143,212.86,212.77,25.427143]
[1731810846986,4.698,212.86,212.78,41.32314478]
[1731810847174,41.32314478,212.87,212.78,41.32314478]
[1731810847376,15.1205,212.88,212.82,41.32314478]
[1731810848089,6.5135,212.92,212.84,41.32314478]
[1731810848267,15.9203,212.95,212.82,4.6986]
[1731810848268,61.93944478,212.95,212.86,41.32314478]
[1731810849288,41.32314478,212.93,212.84,41.32314478]
[1731810849590,57.24344478,212.95,212.86,41.32314478]
[1731810849796,41.32314478,212.97,212.88,41.32314478]
[1731810849970,46.01864478,212.97,212.89,4.6972]
[1731810850291,15.9199,213.03,212.89,4.6972]
[1731810850292,20.6142,213.03,212.9,0.21916462]
[1731810850598,20.6142,213.03,212.98,41.32314478]
[1731810851190,6.3423,213.05,212.98,41.32314478]
[1731810851396,47.66544478,213.05,212.95,41.32314478]
[1731810851689,41.32314478,212.97,212.88,41.32314478]
[1731810851918,4.6961,212.94,212.86,41.32314478]
[1731810852486,4.6961,212.94,212.88,41.32314478]
[1731810852710,4.6958,212.96,212.88,41.32314478]
[1731810853298,23.776884,212.94,212.86,41.32314478]
[1731810853992,23.776884,212.92,212.84,41.32314478]
[1731810854186,41.32314478,212.89,212.82,41.32314478]
[1731810854386,41.32314478,212.87,212.78,41.32314478]
[1731810855181,41.32314478,212.89,212.8,41.32314478]
[1731810855613,41.32314478,212.85,212.78,41.32314478]
[1731810856097,4.6974,212.88,212.8,41.32314478]
[1731810856413,11.0394,212.9,212.84,41.32314478]
[1731810857191,11.0394,212.9,212.82,41.32314478]
[1731810857511,11.0394,212.9,212.84,41.32314478]
[1731810857895,6.3423,212.9,212.84,41.32314478]
[1731810858108,4.6962,212.94,212.86,41.32314478]
[1731810858818,15.9199,212.96,212.9,41.32314478]
[1731810859112,11.0367,213.02,212.94,41.32314478]
[1731810860284,41.32314478,213.01,212.92,41.32314478]
[1731810860484,11.0367,213.02,212.86,41.32314478]
[1731810860485,41.32314478,212.95,212.86,41.32314478]
[1731810860688,41.32314478,212.97,212.88,41.32314478]
[1731810861212,41.32314478,212.95,212.88,41.32314478]
[1731810861508,41.32314478,212.97,212.88,41.32314478]
[1731810861902,41.32314478,212.95,212.86,41.32314478]
[1731810862110,41.32314478,212.95,212.84,16.4437]
[1731810862111,41.32314478,212.97,212.88,41.32314478]
[1731810862294,23.776884,212.94,212.86,41.32314478]
[1731810862488,41.32314478,212.95,212.86,41.32314478]
[1731810862695,41.32314478,212.99,212.88,41.32314478]
[1731810862912,41.32314478,212.97,212.88,41.32314478]
[1731810863421,4.6959,212.95,212.88,41.32314478]
[1731810864108,41.32314478,213.01,212.92,41.32314478]
[1731810864418,4.6946,213.01,212.92,41.32314478]
[1731810864586,46.01774478,213.01,212.9,41.32314478]
[1731810864791,41.32314478,212.99,212.9,41.32314478]
[1731810865215,46.01774478,213.01,212.92,41.32314478]
[1731810865515,4.6946,213.01,212.94,41.32314478]
[1731810866521,46.01774478,213.01,212.92,41.32314478]
[1731810866826,23.776884,213.0,212.92,41.32314478]
[1731810867034,4.6946,213.01,212.94,41.32314478]
[1731810867204,4.6946,213.01,212.92,41.32314478]
[1731810867401,4.6946,213.01,212.88,16.4411]
[1731810867402,46.01814478,212.99,212.9,41.32314478]
[1731810867616,23.776884,212.98,212.9,41.32314478]
[1731810867820,23.776884,212.98,212.86,41.32314478]
[1731810867821,23.776884,212.94,212.86,41.32314478]
[1731810868029,47.37344478,212.95,212.86,41.32314478]
[1731810868417,23.776884,212.94,212.86,41.32314478]
[1731810869316,46.01944478,212.93,212.84,41.32314478]
[1731810869523,41.32314478,212.89,212.8,41.32314478]
[1731810869827,23.776884,212.88,212.8,41.32314478]
[1731810870933,15.62,212.9,212.84,41.32314478]
[1731810871508,4.6972,212.89,212.84,41.32314478]
[1731810872214,4.6972,212.89,212.82,41.32314478]
[1731810873327,15.62,212.9,212.84,41.32314478]
[1731810873530,20.317,212.9,212.84,41.32314478]
[1731810874756,15.62,212.96,212.88,41.32314478]
[1731810874953,15.62,212.96,212.9,41.32314478]
[1731810875135,15.62,212.96,212.92,41.32314478]
[1731810875452,49.49098607,213.01,212.94,41.32314478]
[1731810875745,4.6951,212.99,212.92,41.32314478]
[1731810876122,4.6951,212.99,212.8,63.4397]
[1731810876123,21.6703,213.02,212.98,41.32314478]
[1731810876724,4.6936,213.06,213.0,25.3794754]
[1731810877138,4.6936,213.06,212.98,25.3794754]
[1731810877928,4.6936,213.06,213.0,25.3794754]
[1731810878429,4.6936,213.06,212.98,25.3794754]
[1731810878823,4.6936,213.06,213.0,41.24944219]
[1731810879041,21.6703,213.08,213.02,41.24944219]
[1731810879042,26.3634,213.08,213.02,41.24944219]
[1731810879628,21.6703,213.08,213.04,41.24944219]
[1731810879828,4.6922,213.12,213.06,41.24944219]
[1731810880022,26.3621,213.14,213.08,41.24944219]
[1731810880226,26.3621,213.14,213.06,41.24944219]
[1731810880630,41.24944219,213.13,213.04,41.24944219]
[1731810880831,26.3621,213.14,213.06,41.24944219]
[1731810881256,26.3621,213.14,213.08,41.24944219]
[1731810881456,4.6909,213.18,213.12,41.24944219]
[1731810882151,10.7408,213.2,213.14,41.24944219]
[1731810882344,10.7408,213.2,213.0,86.75344219]
[1731810882345,41.24944219,213.15,213.0,16.4318]
[1731810882532,4.6917,213.14,213.05,41.24944219]
[1731810883057,41.24944219,213.13,213.04,41.24944219]
[1731810883262,41.24944219,213.13,213.0,11.737]
[1731810883263,41.24944219,213.09,213.0,41.24944219]
[1731810883554,41.24944219,213.07,212.98,41.24944219]
[1731810883758,6.2325,213.06,212.98,41.24944219]
[1731810883963,6.2325,213.06,213.02,41.24944219]
[1731810884260,6.2325,213.06,212.98,41.24944219]
[1731810884553,41.24944219,213.01,212.92,41.24944219]
[1731810884739,41.24944219,212.97,212.9,41.24944219]
[1731810884947,41.24944219,213.01,212.92,41.24944219]
[1731810885147,41.24944219,213.03,212.94,41.24944219]
[1731810885733,4.6939,213.04,212.96,41.24944219]
[1731810887155,4.6939,213.04,212.98,41.24944219]
[1731810887338,4.6939,213.04,212.89,0.09367462]
[1731810887339,4.6939,213.04,213.0,41.24944219]
[1731810887963,15.4676,213.08,213.02,41.24944219]
[1731810888134,15.4676,213.08,213.04,41.24944219]
[1731810889039,20.1607,213.08,213.04,41.24944219]
[1731810889342,4.6927,213.1,213.06,41.24944219]
[1731810889662,4.6927,213.1,213.04,41.24944219]
[1731810889841,41.24944219,213.09,213.01,41.24944219]
[1731810890458,23.776884,213.08,213.01,41.24944219]
[1731810890667,4.6932,213.07,213.01,41.24944219]
[1731810891459,23.776884,213.06,212.99,41.24944219]
[1731810891770,45.94264219,213.07,212.97,41.24944219]
[1731810891940,45.94264219,213.07,212.99,41.24944219]
[1731810892668,41.24944219,213.09,212.99,41.24944219]
[1731810892976,4.6926,213.1,213.04,41.24944219]
[1731810894042,4.6922,213.12,213.08,41.24944219]
[1731810894364,4.6922,213.12,213.01,11.7364]
[1731810894365,4.6918,213.14,213.1,41.24944219]
[1731810894666,16.2599,213.15,213.12,41.24944219]
[1731810895162,20.9515,213.15,213.12,41.24944219]
[1731810895345,4.6916,213.15,213.12,41.24944219]
[1731810896038,6.4518,213.17,213.12,41.24944219]
[1731810896239,4.6895,213.24,213.15,41.24944219]
[1731810896465,45.93894219,213.24,213.14,41.24944219]
[1731810896663,41.24944219,213.22,213.12,41.24944219]
[1731810897450,41.24944219,213.22,213.14,41.24944219]
[1731810897656,4.6902,213.21,213.14,41.24944219]
[1731810898745,4.6902,213.21,213.16,41.24944219]
[1731810899467,4.6897,213.23,213.16,41.24944219]
[1731810899858,0.09367462,213.22,213.14,41.24944219]
[1731810900041,16.2599,213.17,213.1,41.24944219]
[1731810900451,16.2599,213.17,213.14,41.24944219]
[1731810900657,16.2599,213.17,213.1,41.24944219]
[1731810900940,16.2599,213.17,213.13,25.35444865]
[1731810901366,4.6902,213.21,213.15,25.35444865]
[1731810901860,25.35444865,213.19,213.11,25.35444865]
[1731810902168,23.776884,213.18,213.09,25.35444865]
[1731810902469,25.35444865,213.19,213.11,25.35444865]
[1731810902675,23.776884,213.2,213.11,25.35444865]
[1731810902854,41.77014865,213.21,213.11,25.35444865]
[1731810903052,41.77014865,213.21,213.13,25.35444865]
[1731810903371,4.6902,213.21,213.17,25.35444865]
[1731810903670,4.6898,213.23,213.19,25.35444865]
[1731810903962,4.6886,213.28,213.21,25.35444865]
[1731810904145,4.6886,213.28,213.23,25.35444865]
[1731810904779,4.6886,213.28,213.25,25.35444865]
[1731810905250,25.35444865,213.34,213.25,25.35444865]
[1731810905576,25.35444865,213.28,213.19,25.35444865]
[1731810905755,25.44812327,213.24,213.15,25.35444865]
[1731810905944,25.35444865,213.18,213.09,25.35444865]
[1731810906265,25.35444865,213.14,213.05,25.35444865]
[1731810906464,25.35444865,213.12,213.03,25.35444865]
[1731810906767,25.35444865,213.12,213.01,25.35444865]
[1731810906768,25.35444865,213.08,213.01,25.35444865]
[1731810906941,23.776884,213.07,212.99,25.35444865]
[1731810907352,4.6935,213.06,213.01,25.35444865]
[1731810907539,4.6935,213.06,212.99,25.35444865]
[1731810907743,25.35444865,213.02,212.93,25.35444865]
[1731810907966,4.6935,213.06,212.91,25.35444865]
[1731810907967,25.35444865,212.98,212.91,25.35444865]
[1731810908148,23.776884,212.97,212.91,25.35444865]
[1731810908348,25.35444865,212.98,212.91,25.35444865]
[1731810908548,23.776884,212.97,212.91,25.35444865]
[1731810908752,23.776884,212.97,212.9,41.28325284]
[1731810908943,23.776884,212.97,212.88,41.28325284]
[1731810909341,41.40874284,212.96,212.88,41.28325284]
[1731810909545,41.28325284,212.94,212.86,41.28325284]
[1731810909781,28.472784,212.95,212.86,41.28325284]
[1731810909951,4.6959,212.95,212.9,41.28325284]
[1731810910149,4.6959,212.95,212.88,41.28325284]
[1731810910365,65.06013684,212.94,212.86,41.28325284]
[1731810910565,30.0,212.93,212.86,41.28325284]
[1731810911392,30.0,212.93,212.84,41.28325284]
[1731810911393,23.776884,212.91,212.84,41.28325284]
[1731810911990,45.97975284,212.92,212.84,41.28325284]
[1731810912208,23.776884,212.91,212.84,41.28325284]
[1731810912583,30.0,212.9,212.84,41.28325284]
[1731810912790,30.0,212.9,212.86,41.28325284]
[1731810913195,4.6972,212.89,212.84,41.28325284]
[1731810913588,4.6972,212.89,212.82,41.28325284]
[1731810913789,4.6972,212.89,212.8,41.28325284]
[1731810913790,53.776884,212.88,212.8,41.28325284]
[1731810914008,41.28325284,212.86,212.78,41.28325284]
[1731810914208,23.776884,212.85,212.78,41.28325284]
[1731810914398,23.776884,212.85,212.74,41.28325284]
[1731810914399,41.28325284,212.82,212.74,41.28325284]
[1731810914600,23.776884,212.81,212.72,41.80703334]
[1731810914786,45.98245284,212.8,212.72,41.80703334]
[1731810915310,23.776884,212.79,212.72,41.80703334]
[1731810915621,47.50915284,212.78,212.72,0.5237805]
[1731810915820,23.776884,212.77,212.72,0.5237805]
[1731810916527,30.0,212.76,212.72,0.5237805]
[1731810916833,4.7001,212.76,212.72,0.5237805]
[1731810917406,39.618384,212.75,212.72,0.5237805]
[1731810918726,15.8415,212.75,212.72,0.5237805]
[1731810919222,20.542,212.75,212.72,0.5237805]
[1731810919602,65.06013684,212.74,212.72,0.5237805]
[1731810920510,53.776884,212.73,212.72,0.5237805]
[1731810920712,30.0,212.73,212.72,0.5237805]
[1731810920905,15.8415,212.75,212.72,41.80703334]
[1731810921715,4.6993,212.8,212.74,41.28325284]
[1731810921921,22.0674,212.84,212.78,41.28325284]
[1731810922212,30.0,212.79,212.76,41.28325284]
[1731810922516,57.12475284,212.92,212.76,41.28325284]
[1731810922517,4.697,212.9,212.76,41.28325284]
[1731810922724,15.8415,212.92,212.77,20.22549]
[1731810922927,20.5381,212.92,212.85,41.28325284]
[1731810923101,41.37692746,212.91,212.83,41.28325284]
[1731810923300,41.28325284,212.91,212.83,41.28325284]
[1731810923640,20.5381,212.92,212.87,41.28325284]
[1731810923812,15.8415,212.92,212.87,41.28325284]
[1731810924005,4.6957,212.96,212.89,41.28325284]
[1731810924205,4.6957,212.96,212.91,41.28325284]
[1731810924518,41.28325284,212.99,212.91,41.28325284]
[1731810924828,4.6952,212.99,212.93,41.28325284]
[1731810925504,15.5146,213.0,212.95,41.28325284]
[1731810925713,11.7329,213.08,212.88,41.28325284]
[1731810925714,4.693,213.08,212.99,41.28325284]
[1731810926032,4.693,213.08,212.93,0.1]
[1731810926033,4.693,213.08,213.03,41.28325284]
[1731810926199,41.28325284,213.05,212.97,41.28325284]
[1731810926409,41.28325284,213.0,212.83,0.2]
[1731810926615,30.09367462,213.04,212.84,16.4437]
[1731810926824,4.695,212.99,212.92,41.28325284]
[1731810927232,41.28325284,212.96,212.88,41.28325284]
[1731810927433,23.776884,212.95,212.88,41.28325284]
[1731810927621,41.28325284,212.96,212.88,41.28325284]
[1731810927822,23.776884,212.95,212.88,41.28325284]
[1731810928426,4.6961,212.94,212.88,41.28325284]
[1731810928936,41.28325284,213.0,212.92,41.28325284]
[1731810929245,41.28325284,213.0,212.85,16.4434]
[1731810929246,4.6939,213.04,212.98,41.28325284]
[1731810929737,45.97675284,213.06,212.98,41.28325284]
[1731810929909,4.6935,213.06,212.98,41.28325284]
[1731810930109,4.6935,213.06,213.0,41.28325284]
[1731810930332,4.6935,213.06,213.02,41.28325284]
[1731810930512,4.693,213.08,213.02,41.28325284]
[1731810930713,4.6927,213.1,213.04,41.28325284]
[1731810931048,15.6123,213.17,213.08,41.28325284]
[1731810931218,15.6123,213.17,213.13,41.28325284]
[1731810931407,4.6903,213.21,213.16,41.28325284]
[1731810931615,4.6903,213.21,213.14,41.28325284]
[1731810931837,15.6123,213.25,213.0,41.28325284]
[1731810931838,61.58495284,213.25,213.16,41.28325284]
[1731810932136,41.28325284,213.23,213.14,41.28325284]
[1731810932510,41.28325284,213.23,213.0,41.28325284]
[1731810932511,41.28325284,213.17,213.1,41.28325284]
[1731810932740,41.28325284,213.14,213.06,41.28325284]
[1731810932921,41.28325284,213.1,213.0,41.28325284]
[1731810933240,41.28325284,213.07,213.0,41.28325284]
[1731810933424,41.28325284,213.13,213.04,41.28325284]
[1731810933732,23.776884,213.1,213.02,41.28325284]
[1731810933943,41.28325284,213.09,213.0,41.28325284]
[1731810934113,41.28325284,213.11,213.02,41.28325284]
[1731810934312,41.28325284,213.09,213.02,41.28325284]
[1731810934614,4.6926,213.1,213.02,41.28325284]
[1731810934816,4.6922,213.12,213.04,41.28325284]
[1731810935334,4.6917,213.14,213.06,41.28325284]
[1731810936110,35.1748,213.22,213.1,41.28325284]
[1731810936111,4.6914,213.16,213.1,41.28325284]
[1731810936314,41.28325284,213.13,213.04,41.28325284]
[1731810936538,41.28325284,213.1,213.02,41.28325284]
[1731810936845,0.09367462,213.12,213.0,41.28325284]
[1731810936846,4.6928,213.09,213.0,41.28325284]
[1731810937011,41.28325284,213.08,213.0,41.28325284]
[1731810937616,41.28325284,213.04,212.96,41.28325284]
[1731810938244,41.28325284,213.06,212.98,41.28325284]
[1731810938924,0.12549,213.07,212.98,41.28325284]
[1731810938925,4.6933,213.07,212.98,41.28325284]
[1731810939127,56.89555284,213.08,212.97,4.6953]
[1731810939128,15.6123,213.08,213.04,41.28325284]
[1731810939346,4.692,213.13,213.06,41.28325284]
[1731810939725,41.28325284,213.1,213.02,41.28325284]
[1731810940128,4.692,213.13,213.04,41.28325284]
[1731810940352,41.28325284,213.12,213.02,41.28325284]
[1731810940523,41.28325284,213.08,213.0,41.28325284]
[1731810940729,41.28325284,213.06,212.98,41.28325284]
[1731810940924,41.28325284,213.08,212.98,41.28325284]
[1731810941129,41.28325284,213.06,212.98,41.28325284]
[1731810941454,41.28325284,213.08,213.0,41.28325284]
[1731810941626,41.28325284,213.06,212.98,41.28325284]
[1731810941952,41.28325284,213.1,213.0,41.28325284]
[1731810942130,65.06013684,213.1,213.0,41.28325284]